Cogmind - Beta 17.1 @@@ ROGUE MODE // 2026.09.19 @ 21:34:41 Player: hvatnajokl Result: Destroyed by S-10 Pest with Light Assault Rifle Performance ------------- Evolutions (1) 500 Regions Visited (2) 400 Robots Destroyed (10) 50 Value Destroyed (298) 298 Prototype IDs (0) 0 Alien Tech Used (0) 0 Bonus (0) 0 TOTAL SCORE: 1248 Bonus ------- None Cogmind --------- Core Integrity 0/400 Matter 271/500 Energy 100/100 System Corruption 0% Temperature Cool (0) Movement Core (750) Ox14 Location -9/Materials Parts ------- > --- POWER (2) -------- (None) > --- PROPULSION (2) --- (None) > --- UTILITY (3) ------ High-capacity Storage Unit High-capacity Matter Pod > --- WEAPON (2) ------- (None) > --- INVENTORY (20) --- Grenade Launcher Peak State ------------ > --- POWER ------------ Ion Engine Ion Engine > --- PROPULSION ------- Light Treads Light Treads > --- UTILITY ---------- High-capacity Storage Unit High-capacity Matter Pod Backup Plating I > --- WEAPON ----------- Medium Laser Light Assault Rifle > --- INVENTORY -------- Small Laser Grenade Launcher [Rating: 9] Favorites ----------- Power Ion Engine Engine Ion Engine Propulsion Light Treads Treads Light Treads Utility High-capacity Storage Unit Storage High-capacity Storage Unit Protection Backup Plating I Weapon Medium Laser Energy Gun Medium Laser Ballistic Gun Light Assault Rifle Launcher Grenade Launcher Build | -11 -10 -9 ------- Run | Yrd Mat Mat Slots Evolved 2 | . . 2 Power 1 | . . 1 Propulsion . | . . . Utility 1 | . . 1 Weapon . | . . . Parts Attached 11 | 6 2 3 Power 2 | 1 . 1 Engine 2 | 1 . 1 Core . | . . . Reactor . | . . . Propulsion 2 | 2 . . Treads 2 | 2 . . Leg . | . . . Wheel . | . . . Hover . | . . . Flight . | . . . Utility 3 | 1 1 1 Device . | . . . Storage 3 | 1 1 1 Processor . | . . . Hackware . | . . . Protection . | . . . Artifact . | . . . Weapon 4 | 2 1 1 Energy Gun 2 | 2 . . Energy Cannon . | . . . Ballistic Gun 1 | . . 1 Ballistic Cannon . | . . . Launcher 1 | . 1 . Special Weapon . | . . . Impact Weapon . | . . . Slashing Weapon . | . . . Piercing Weapon . | . . . Special Melee Weapon . | . . . Unidentified Prototypes . | . . . Parts Lost 8 | . . 8 Power 2 | . . 2 Propulsion 2 | . . 2 Utility 1 | . . 1 Weapon 3 | . . 3 Highest Loss Streak 5 | . . 5 To Critical Strikes . | . . . Average Backups 1 | . 1 1 Power . | . . . Propulsion . | . . . Utility . | . . . Weapon 1 | . . 1 Tool/Special . | . . . Unused Backups . | . . . Power . | . . . Propulsion . | . . . Utility . | . . . Weapon . | . . . Tool/Special . | . . . Average Slot Usage (%) 85 | . 98 78 Engine 11 | . 14 10 Treads 21 | . 28 17 Storage 18 | . 14 21 Protection 9 | . 13 7 Energy Gun 11 | . 14 10 Ballistic Gun 3 | . . 5 Launcher 7 | . 13 4 Peak Build Rating 9 | 6 7 9 Average Rating 6 | 4 6 7 On Entrance 4 | . 6 7 Avg Prop Armor Cover (%) . | . . . Naked Turns . | . . . Heaviest Build 58 | 13 51 58 Greatest Support 40 | 40 40 40 Greatest Overweight (x) 15 | 1 1 15 Average Overweight (x) . | . . 1 Largest Inventory Capacity 20 | 8 20 20 Average Capacity 17 | 6 17 20 Most Carried 2 | . 2 2 Average Carried 1 | . 1 1 Final Capacity 20 | 8 20 20 Final Carried 1 | . 1 1 Class Distribution -------------------- 100% | Mutant Dominant Class ---------------- Mutant | -10/Materials Mutant | -9/Materials Resources | -11 -10 -9 ----------- Run | Yrd Mat Mat Matter Collected 345 | 172 35 138 Remotely . | . . . Salvage Created 275 | . 35 240 Parts 19 | . 8 11 Haulers Intercepted . | . . . Recyclers Shooed 1 | . . 1 Parts Field Recycled . | . . . Retrieved Matter . | . . . Parts Self-Destructed . | . . . Prevented . | . . . Parts Restored . | . . . Kills | -11 -10 -9 ------- Run | Yrd Mat Mat Combat Hostiles Destroyed 7 | . 1 6 Guns 7 | . 1 6 Classes Destroyed 4 | . 2 2 Operator 1 | . . 1 Watcher 2 | . 2 . Grunt 6 | . 1 5 Brawler 1 | . . 1 Best Kill Streak 2 | . 2 2 Combat Bots Only 2 | . 1 2 Max Kills in Single Turn 1 | . 1 1 Gunslinging . | . . . Exploded . | . . . Melee . | . . . Uniques/NPCs Destroyed . | . . . Combat | -11 -10 -9 -------- Run | Yrd Mat Mat Hostile Shots Fired 176 | . 3 173 Missed 50 | . 1 49 Hits 126 | . 2 124 Melee 2 | . . 2 Projectile 124 | . 2 122 Damage Taken 1255 | . 23 1232 Core 402 | . . 402 Absorbed by Shields . | . . . Core Remaining (%) 100 | 100 100 . Volleys Fired 46 | . 5 41 Largest 2 | . 2 2 Hottest 80 | . 80 80 Shots Fired 78 | . 8 70 Gun 71 | . 5 66 Cannon . | . . . Launcher 7 | . 3 4 Special . | . . . Kinetic 28 | . . 28 Thermal 43 | . 5 38 Explosive 7 | . 3 4 Electromagnetic . | . . . Robot Hit Streak 14 | . 5 14 Robot Miss Streak 2 | . 1 2 Penetration Max . | . . . Secondary Targets . | . . . Shots Hit Robots 50 | . 5 45 Core Hits 16 | . 4 12 Critical Kills . | . . . Critical Parts Destroyed . | . . . Critical Strikes 3 | . 1 2 Burn 3 | . 1 2 Melee Attacks . | . . . Impact . | . . . Slashing . | . . . Piercing . | . . . Sneak Attacks . | . . . Combat Hostiles . | . . . Follow-up Attacks . | . . . Damage Inflicted 689 | . 160 529 Guns 511 | . 49 462 Cannons . | . . . Explosions 178 | . 111 67 Melee . | . . . Ramming . | . . . Kinetic 140 | . . 140 Thermal 371 | . 49 322 Explosive 178 | . 111 67 Electromagnetic . | . . . Impact . | . . . Slashing . | . . . Piercing . | . . . Highest Corruption . | . . . Average Corruption . | . . . Corruption Purged . | . . . Corruption Blocked . | . . . Overload Shots . | . . . Overflow Damage 1 | . . 1 Projectiles . | . . . Explosions 1 | . . 1 Melee . | . . . Knockbacks . | . . . Impact . | . . . Kinetic . | . . . Secondary . | . . . Self-Inflicted Damage 2 | . . 2 Shots 1 | . . 1 Rammed 1 | . . 1 Targets Rammed 1 | . . 1 Kicked . | . . . Crushed . | . . . Highest Temperature 322 | . 78 322 Average Temperature 93 | . 32 101 Received Heat Transfer 414 | . 12 402 Siege Activations . | . . . Martial Activations . | . . . Shielding Activations . | . . . Robots Disrupted . | . . . Combat Hostiles . | . . . Robots Corrupted . | . . . Combat Hostiles . | . . . Parts Fried . | . . . Impact Corruptions . | . . . Robots Melted . | . . . Combat Hostiles . | . . . Parts Melted 1 | . . 1 Heat Transferred 1285 | . 222 1063 Parts Sabotaged . | . . . Parts Stolen . | . . . Parts Stripped . | . . . Power Chain Reactions . | . . . Alert | -11 -10 -9 ------- Run | Yrd Mat Mat Maximum Alert Level . | . . . Low Security (%) 100 | 100 100 100 Level 1 . | . . . Level 2 . | . . . Level 3 . | . . . Level 4 . | . . . Level 5 . | . . . High Security . | . . . Max Security . | . . . Peak Influence 50 | . 50 40 Initial 7 | . . 7 Average 8 | . 8 9 Influence Increases 265 | . 74 191 Destroy 0b10 Robot/C 140 | . 20 120 Destroy 0b10 Robot/NC 15 | . 10 5 Destroy Leader 34 | . 14 20 Successful Hack 7 | . 7 . Disable Machine 15 | . . 15 Destroy Structure 54 | . 23 31 Influence Decreases 265 | . 55 210 Entered New Map 12 | . . 12 Time Decay 227 | . 55 172 Lost Part 26 | . . 26 Squads Dispatched 2 | . 1 1 Investigation . | . . . Extermination . | . . . Reinforcement 2 | . 1 1 Assault . | . . . Garrison . | . . . Intercept . | . . . Searches Triggered . | . . . Construction Impeded . | . . . Haulers Reinforced . | . . . Active Scanning Responses . | . . . Cargo Convoy Interrupts . | . . . Stealth | -11 -10 -9 --------- Run | Yrd Mat Mat Distress Signals 2 | . 1 1 Communications Jammed . | . . . Distress Signals . | . . . Times Spotted 21 | . 4 17 Peak Tracking Total 7 | . 2 7 Tactical Retreats . | . . . Traps | -11 -10 -9 ------- Run | Yrd Mat Mat Traps Triggered . | . . . Indirectly . | . . . Trap Hack Attempts . | . . . Triggered . | . . . Disarmed . | . . . Reprogrammed . | . . . Reused . | . . . Traps Extracted . | . . . Installed . | . . . Triggered . | . . . Machines | -11 -10 -9 ---------- Run | Yrd Mat Mat Machines Disabled 1 | . . 1 Max in Single Turn 1 | . . 1 Machines Repaired . | . . . Machines Dismantled . | . . . Machines Sabotaged . | . . . Overloaded Fab Kills . | . . . Hacking | -11 -10 -9 --------- Run | Yrd Mat Mat Machines Accessed 6 | . 4 2 Terminals 4 | . 2 2 Fabricators . | . . . Repair Stations 1 | . 1 . Recycling Units 1 | . 1 . Scanalyzers . | . . . Garrison Access . | . . . Total Hacks 13 | . 8 5 Successful 10 | . 6 4 Failed 3 | . 2 1 Catastrophic 1 | . 1 . Database Lockouts . | . . . Manual 1 | . 1 . Terminals 10 | . 5 5 Fabricators . | . . . Repair Stations 1 | . 1 . Recycling Units 2 | . 2 . Scanalyzers . | . . . Garrison Access . | . . . Terminal Hacks 8 | . 4 4 Record 7 | . 4 3 Maintenance Status 1 | . . 1 Fabricator Hacks . | . . . Repair Station Hacks 1 | . 1 . Refit 1 | . 1 . Recycling Unit Hacks 1 | . 1 . Recycle Component 1 | . 1 . Scanalyzer . | . . . Garrison Access Hacks . | . . . Unauthorized Hacks . | . . . Terminals . | . . . Fabricators . | . . . Repair Stations . | . . . Recycling Units . | . . . Scanalyzers . | . . . Garrison Access . | . . . Data Cores Recovered . | . . . Used . | . . . Hacking Detections 2 | . 2 . Full Trace Events . | . . . Feedback Events . | . . . Feedback Blocked . | . . . Robot Schematics Acquired . | . . . Robots Built . | . . . Authchips . | . . . Time . | . . . Total Robot Build Rating . | . . . Part Schematics Acquired . | . . . Parts Built . | . . . Authchips . | . . . Time . | . . . Total Part Build Rating . | . . . Part Studies Acquired . | . . . Parts Repaired . | . . . Time . | . . . Parts Recycled 1 | . 1 . Recycled Matter . | . . . Retrieved Matter . | . . . Retrieved Components . | . . . Parts Scanalyzed . | . . . Part Schematics Acquired . | . . . Parts Damaged . | . . . Bothacking | -11 -10 -9 ------------ Run | Yrd Mat Mat Used RIF Installer . | . . . Robots Hacked . | . . . Non-combat . | . . . Combat . | . . . Robot Hacks Applied . | . . . Relay Couplers Released . | . . . Fabnet Peak Effective % . | . . . Robots Rewired . | . . . Allies Hacked . | . . . Hacks Repelled . | . . . Allies | -11 -10 -9 -------- Run | Yrd Mat Mat Total Allies . | . . . Largest Group . | . . . Highest-Rated Group . | . . . Highest-Rated Ally . | . . . Total Orders . | . . . Ally Attacks . | . . . Total Damage . | . . . Kills . | . . . Allies Corrupted . | . . . Allies Melted . | . . . Intel | -11 -10 -9 ------- Run | Yrd Mat Mat Active Infowar (turns) . | . . . Robot Analysis Total . | . . . Derelict Logs Recovered . | . . . Drone Launches . | . . . Drone Recoveries . | . . . Exploration | -11 -10 -9 ------------- Run | Yrd Mat Mat Turns Passed 1253 | 129 411 713 Spaces Moved 490 | 85 182 223 Core 27 | 22 . 5 Treads 463 | 63 182 218 Legs . | . . . Wheels . | . . . Hover . | . . . Flight . | . . . Fastest Speed 50 | 50 160 240 Average Speed 228 | 142 218 269 Slowest Speed 800 | 160 240 800 Overloaded Moves . | . . . Propulsion Burnouts . | . . . Robots Hopped . | . . . Potential Cave-ins . | . . . Cave-ins Triggered . | . . . Exploration Rate (%) 16 | 5 25 18 Regions Visited 2 Branch Regions . Pre-discovered Areas . | . . . Known Exits Taken . | . . . Unknown Exits Taken 2 | 1 1 . Scrap Searched . | . . . Spaces Dug . | . . . Terrain Destroyed 60 | . 26 34 Melee . | . . . Projectile . | . . . AOE 60 | . 26 34 Terrain Rammed . | . . . Walls Destroyed . | . . . Machines Disabled . | . . . Actions | -11 -10 -9 --------- Run | Yrd Mat Mat Total 549 | 90 189 270 Wait . | . . . Move 488 | 84 181 223 Hop . | . . . Pick Up . | . . . Fast Attach 10 | 6 1 3 Attach 1 | . . 1 Detach 2 | . 1 1 Swap 1 | . 1 . Drop . | . . . Fire 46 | . 5 41 Melee . | . . . Ram . | . . . Kick . | . . . Crush 1 | . . 1 Escape Stasis . | . . . Rewire . | . . . Trap . | . . . Miscellaneous . | . . . Route ------- -11/Scrapyard -10/Materials -9/Materials History --------- Turn | Location | Event 12 | -11/Scrapyard | Discovered new exit (range 15) 130 | -11/Scrapyard | Entered Materials 309 | -10/Materials | Build established: Mutant 484 | -10/Materials | Discovered new exit (range 14) 541 | -10/Materials | Entered another Materials area 541 | -9/Materials | Evolved 2 slots: Power x1, Utility x1 1071 | -9/Materials | Lost 5 parts (2p1n1u1w) 1232 | -9/Materials | Core integrity fell below 50% 1248 | -9/Materials | Core integrity fell below 20% 1254 | -9/Materials | Destroyed by S-10 Pest with Light Assault Rifle Last Messages --------------- G-34 Mercenary destroyed. K-01 Serf collects debris. G-34 Mercenary destroyed. K-01 Serf collects debris. R-06 Scavenger collects Aluminum Leg. Acquired 35 matter. K-01 Serf collects debris. Acquired 33 matter. K-01 Serf collects debris. Lgt. Treads destroyed. Lgt. Assault Rifle destroyed. Sml. Laser destroyed. S-10 Pest destroyed. R-06 Scavenger collects Lgt. Ion Engine. C-30 ARC bursts open, deploying its payload. G-47 Trooper unfolds itself. G-34 Mercenary unfolds itself. R-06 Scavenger collects Flight Unit. G-34 Mercenary destroyed. R-06 Scavenger collects Aluminum Leg. Map ----- +----------------------------------------------------+ | ?????????????????????????????????????????????????? | | ?????????????????????????????????????????????????? | | ?????????????????????????????????????????????????? | | ?????????????????????????????????????????????????? | | ?????????????????????????????????????????????????? | | ?????????????????????????????????????????????????? | | ?????????????????????????????????????????????????? | | ?????????????????????????????????????????????????? | | ??????????????????????????##################?????? | | ??????????????????????????# # = #?????? | | ?????????????????????# ???# # ####### | | ?????????????????????# #### + # | | ?????????????????????# + # # | | ?????????????????????+ ## # # """ | | ?????????????????????# ?# # # """ | | ?????????????????????# ?# # # """ | | ?????????????????????# ?# # # | | ?????????????????????# ?# # ####### | | ?????????????????????# w#####+########+########## | | ?????????????????????# u % | | ?????????????????????# % | | ?????????????????????# r | | ?????????????????????# u###############+### | | ???????????????# ##### #???????# # | | ???????????????# #???????# # | | ?????????? @ s #???????# = # | | ?????????? u a s #???????# # | | ?????????? """ """ s #?????### | # | | ??????????? """ """ ???# # | | ??????????? [= """ g""" ?# # | | ???????????? [= % !## # | | ?????????????????? g ################# | | ?????????????????? """ r""" #???############# | | ?????????????????? """% """ #??# T | | ?????????????????? """% """ #??# | | ????????????????? ???? w ? #??# """ = | | ?????????????????????? ?? #??# """ | | ?????????????????????+##???## #??# ! """ | | ????????????????????????????? #??############# | | ????????????????????????????? #??????????????? | | ????????????????????????????? ???????????????? | | ????????????????????????????? ?????????????????? | | ?????????????????????????????????????????????????? | | ?????????????????????????????????????????????????? | | ?????????????????????????????????????????????????? | | ?????????????????????????????????????????????????? | | ?????????????????????????????????????????????????? | | ?????????????????????????????????????????????????? | | ?????????????????????????????????????????????????? | | ?????????????????????????????????????????????????? | +----------------------------------------------------+ Best States ------------- Heat Dissipation 28 Energy Generation 15 Energy Capacity 400 Matter Stores 271 Matter Capacity 500 Sight Range 16 Terrain Scan Density 10 Armor Coverage 80 Evasion (%) 40 Recoil Reduction 2 Item Schematics ----------------- None Robot Schematics ------------------ None Fabricated ------------ Nothing Repaired ---------- Nothing Studied --------- None Alien Tech Used ----------------- None Achievements -------------- Fitting Room For Emergencies Only Challenges ------------ None Game ------ Seed LauncherBurstPower Manual? 0 Play Time 00:16:36 Cumulative 7.9 hours Start 2026.09.19 @ 21:20:25 End 2026.09.19 @ 21:34:41 Sessions 1 Manual Loads 0 Difficulty Rogue Special Mode None Game No. 22 Rogue 18 Adventurer 4 Explorer 0 Win Type - Total 0 Types 0/0/0/0/0/0/0/0/0/0 Lore% 3 Gallery% 9 Achievement% 7 Wizard Run 0 Options --------- Layout 1 ASCII 1 Keyboard 0 Movement Arrows Keybinds 0 Fullscreen 1 Font 24/Smallcaps Map View 50x35 Zoom Use 0% Tactical HUD 0 Map Filters NONE Filters NONE Steam 1 RUN: d20c6881-7cec-45d1-8554-2666b81da8ab